[Event "Titled Tuesday Blitz February 14 Early 2023"]
[White "Bochnicka, Vladimir"]
[Black "Weetik, Vjacheslav"]
[WhiteFideId "14943450"]
[BlackFideId "4153472"]
[WhiteElo "2327"]
[BlackElo "2423"]
[Result "1-0"]
[Round "09"]
[TimeControl "180+2"]
[Date "2023.02.14"]
[WhiteClock "0:00:08"]
[BlackClock "0:00:02"]

1. e4 {[%clk 0:02:57]}  c5 {[%clk 0:02:59]} 2. Nf3 {[%clk 0:02:57]}  d6 {[%clk 0:03:00]} 3. d4 {[%clk 0:02:58]}  cxd4 {[%clk 0:02:59]} 4. Nxd4 {[%clk 0:02:58]}  Nf6 {[%clk 0:03:00]} 5. Nc3 {[%clk 0:02:59]}  a6 {[%clk 0:03:01]} 6. f3 {[%clk 0:02:59]}  e5 {[%clk 0:02:52]} 7. Nb3 {[%clk 0:02:59]}  Be6 {[%clk 0:02:52]} 8. Be3 {[%clk 0:02:59]}  Be7 {[%clk 0:02:52]} 9. Qd2 {[%clk 0:02:59]}  O-O {[%clk 0:02:52]} 10. O-O-O {[%clk 0:02:59]}  Qc7 {[%clk 0:02:52]} 11. g4 {[%clk 0:02:59]}  Rc8 {[%clk 0:02:52]} 12. Kb1 {[%clk 0:02:58]}  Nbd7 {[%clk 0:02:48]} 13. g5 {[%clk 0:02:54]}  Nh5 {[%clk 0:02:47]} 14. Ne2 {[%clk 0:02:50]}  g6 {[%clk 0:02:20]} 15. Ng3 {[%clk 0:02:46]}  Nf4 {[%clk 0:02:19]} 16. h4 {[%clk 0:02:47]}  d5 {[%clk 0:02:10]} 17. Bxf4 {[%clk 0:02:17]}  exf4 {[%clk 0:02:09]} 18. exd5 {[%clk 0:02:15]}  Bxd5 {[%clk 0:01:52]} 19. Qxd5 {[%clk 0:02:05]}  Qxc2+ {[%clk 0:01:14]} 20. Ka1 {[%clk 0:02:05]}  Nb6 {[%clk 0:01:07]} 21. Qd4 {[%clk 0:01:53]}  Rd8 {[%clk 0:00:33]} 22. Bd3 {[%clk 0:01:53]}  Qxd1+ {[%clk 0:00:33]} 23. Rxd1 {[%clk 0:01:53]}  Rxd4 {[%clk 0:00:33]} 24. Nxd4 {[%clk 0:01:53]}  fxg3 {[%clk 0:00:34]} 25. Ne2 {[%clk 0:01:47]}  g2 {[%clk 0:00:28]} 26. Nf4 {[%clk 0:01:39]}  h6 {[%clk 0:00:18]} 27. gxh6 {[%clk 0:01:33]}  Bxh4 {[%clk 0:00:14]} 28. Nxg2 {[%clk 0:01:33]}  Bg5 {[%clk 0:00:13]} 29. Be4 {[%clk 0:01:09]}  Nc4 {[%clk 0:00:13]} 30. Rd7 {[%clk 0:00:58]}  Rd8 {[%clk 0:00:06]} 31. Rxd8+ {[%clk 0:00:51]}  Bxd8 {[%clk 0:00:06]} 32. Bxb7 {[%clk 0:00:51]}  a5 {[%clk 0:00:07]} 33. Bd5 {[%clk 0:00:51]}  Nb6 {[%clk 0:00:05]} 34. h7+ {[%clk 0:00:50]}  Kxh7 {[%clk 0:00:04]} 35. Bxf7 {[%clk 0:00:50]}  Bf6 {[%clk 0:00:04]} 36. Nf4 {[%clk 0:00:48]}  Na4 {[%clk 0:00:03]} 37. Bxg6+ {[%clk 0:00:42]}  Kh6 {[%clk 0:00:03]} 38. Be4 {[%clk 0:00:19]}  Nxb2 {[%clk 0:00:03]} 39. Kb1 {[%clk 0:00:20]}  Nc4 {[%clk 0:00:04]} 40. Nd5 {[%clk 0:00:18]}  Be5 {[%clk 0:00:03]} 41. Kc2 {[%clk 0:00:18]}  Kg5 {[%clk 0:00:02]} 42. Kb3 {[%clk 0:00:16]}  Nd6 {[%clk 0:00:01]} 43. Ka4 {[%clk 0:00:15]}  Nb7 {[%clk 0:00:01]} 44. f4+ {[%clk 0:00:13]}  Bxf4 {[%clk 0:00:01]} 45. Nxf4 {[%clk 0:00:14]}  Nc5+ {[%clk 0:00:01]} 46. Kxa5 {[%clk 0:00:14]}  Nxe4 {[%clk 0:00:02]} 47. Nd5 {[%clk 0:00:13]}  Kf5 {[%clk 0:00:02]} 48. Kb5 {[%clk 0:00:12]}  Ke5 {[%clk 0:00:02]} 49. Kc6 {[%clk 0:00:08]} 1-0


[Site "https://www.chess.com"]

[Event "Titled Tuesday Blitz February 14 Early 2023"]
[White "Panesar Vedant"]
[Black "Grycel, Kamil"]
[WhiteFideId "35033018"]
[BlackFideId "1115499"]
[WhiteElo "2387"]
[BlackElo "2315"]
[Result "1-0"]
[Round "09"]
[TimeControl "180+2"]
[Date "2023.02.14"]
[WhiteClock "0:00:24"]
[BlackClock "0:00:02"]

1. Nf3 {[%clk 0:02:59]}  b6 {[%clk 0:03:00]} 2. e4 {[%clk 0:02:57]}  Bb7 {[%clk 0:03:00]} 3. Nc3 {[%clk 0:02:57]}  e6 {[%clk 0:03:00]} 4. d4 {[%clk 0:02:57]}  Bb4 {[%clk 0:02:59]} 5. Bd3 {[%clk 0:02:56]}  Nf6 {[%clk 0:03:00]} 6. Nd2 {[%clk 0:02:53]}  Bxc3 {[%clk 0:02:53]} 7. bxc3 {[%clk 0:02:53]}  d6 {[%clk 0:02:49]} 8. O-O {[%clk 0:02:52]}  Nbd7 {[%clk 0:02:48]} 9. f4 {[%clk 0:02:52]}  e5 {[%clk 0:02:45]} 10. fxe5 {[%clk 0:02:52]}  dxe5 {[%clk 0:02:45]} 11. Ba3 {[%clk 0:02:41]}  c5 {[%clk 0:02:42]} 12. Qf3 {[%clk 0:02:23]}  O-O {[%clk 0:02:38]} 13. Nc4 {[%clk 0:02:21]}  Qc7 {[%clk 0:02:36]} 14. Ne3 {[%clk 0:02:18]}  Rfe8 {[%clk 0:02:15]} 15. d5 {[%clk 0:02:08]}  c4 {[%clk 0:01:44]} 16. Nxc4 {[%clk 0:01:57]}  Nc5 {[%clk 0:01:43]} 17. Rac1 {[%clk 0:01:50]}  Ba6 {[%clk 0:01:37]} 18. Ne3 {[%clk 0:01:47]}  Nxd3 {[%clk 0:01:28]} 19. cxd3 {[%clk 0:01:45]}  Bxd3 {[%clk 0:01:28]} 20. Ng4 {[%clk 0:01:38]}  Nxg4 {[%clk 0:01:06]} 21. Qxd3 {[%clk 0:01:36]}  Rac8 {[%clk 0:00:56]} 22. c4 {[%clk 0:01:34]}  Qd7 {[%clk 0:00:55]} 23. Qg3 {[%clk 0:01:32]}  f6 {[%clk 0:00:53]} 24. h3 {[%clk 0:01:29]}  Nh6 {[%clk 0:00:53]} 25. Rxf6 {[%clk 0:01:29]}  Kh8 {[%clk 0:00:50]} 26. Rd6 {[%clk 0:01:25]}  Qa4 {[%clk 0:00:49]} 27. Bb2 {[%clk 0:01:04]}  Nf7 {[%clk 0:00:40]} 28. Re6 {[%clk 0:00:59]}  Qxa2 {[%clk 0:00:30]} 29. Bxe5 {[%clk 0:00:49]}  Nxe5 {[%clk 0:00:28]} 30. Qxe5 {[%clk 0:00:49]}  Rf8 {[%clk 0:00:27]} 31. Re7 {[%clk 0:00:46]}  Qf2+ {[%clk 0:00:22]} 32. Kh1 {[%clk 0:00:46]}  Rg8 {[%clk 0:00:21]} 33. Rxa7 {[%clk 0:00:42]}  Rcf8 {[%clk 0:00:18]} 34. d6 {[%clk 0:00:40]}  Qe3 {[%clk 0:00:18]} 35. Rd1 {[%clk 0:00:37]}  Qe2 {[%clk 0:00:18]} 36. Rg1 {[%clk 0:00:37]}  Rf1 {[%clk 0:00:17]} 37. Rxf1 {[%clk 0:00:37]}  Qxf1+ {[%clk 0:00:17]} 38. Kh2 {[%clk 0:00:38]}  Qf2 {[%clk 0:00:09]} 39. Re7 {[%clk 0:00:38]}  Qf8 {[%clk 0:00:06]} 40. d7 {[%clk 0:00:38]}  Qd8 {[%clk 0:00:07]} 41. Re8 {[%clk 0:00:37]}  Qxd7 {[%clk 0:00:07]} 42. Rxg8+ {[%clk 0:00:36]}  Kxg8 {[%clk 0:00:08]} 43. Qb8+ {[%clk 0:00:29]}  Kf7 {[%clk 0:00:08]} 44. Qxb6 {[%clk 0:00:30]}  Qe7 {[%clk 0:00:07]} 45. Qf2+ {[%clk 0:00:29]}  Kg8 {[%clk 0:00:07]} 46. Qf4 {[%clk 0:00:27]}  Qc5 {[%clk 0:00:04]} 47. e5 {[%clk 0:00:28]}  Qc7 {[%clk 0:00:03]} 48. Kg3 {[%clk 0:00:26]}  h6 {[%clk 0:00:03]} 49. e6 {[%clk 0:00:25]}  Qe7 {[%clk 0:00:02]} 50. Qf7+ {[%clk 0:00:24]} 1-0


[Site "https://www.chess.com"]

[Event "Titled Tuesday Blitz February 14 Early 2023"]
[White "Molina, Roberto Junio Brito"]
[Black "Demin, Vladimir"]
[WhiteFideId "2109450"]
[BlackFideId "4167457"]
[WhiteElo "2403"]
[BlackElo "2430"]
[Result "1-0"]
[Round "09"]
[TimeControl "180+2"]
[Date "2023.02.14"]
[WhiteClock "0:01:35"]
[BlackClock "0:00:12"]

1. e4 {[%clk 0:03:00]}  e5 {[%clk 0:01:59]} 2. Nf3 {[%clk 0:03:00]}  Nf6 {[%clk 0:01:58]} 3. Nxe5 {[%clk 0:02:59]}  d6 {[%clk 0:01:57]} 4. Nf3 {[%clk 0:02:59]}  Nxe4 {[%clk 0:01:57]} 5. Nc3 {[%clk 0:03:00]}  Nxc3 {[%clk 0:01:57]} 6. dxc3 {[%clk 0:03:01]}  Be7 {[%clk 0:01:57]} 7. Be3 {[%clk 0:03:01]}  O-O {[%clk 0:01:58]} 8. Qd2 {[%clk 0:03:02]}  d5 {[%clk 0:01:57]} 9. O-O-O {[%clk 0:03:03]}  Be6 {[%clk 0:01:51]} 10. Kb1 {[%clk 0:03:03]}  a5 {[%clk 0:01:51]} 11. h4 {[%clk 0:03:02]}  a4 {[%clk 0:01:50]} 12. Ng5 {[%clk 0:03:00]}  Nc6 {[%clk 0:01:45]} 13. Bb5 {[%clk 0:02:56]}  a3 {[%clk 0:01:13]} 14. b3 {[%clk 0:02:54]}  Qd7 {[%clk 0:01:09]} 15. c4 {[%clk 0:02:46]}  Rad8 {[%clk 0:01:03]} 16. Nxe6 {[%clk 0:02:36]}  fxe6 {[%clk 0:01:00]} 17. cxd5 {[%clk 0:02:36]}  Qxd5 {[%clk 0:00:56]} 18. Qxd5 {[%clk 0:02:32]}  exd5 {[%clk 0:00:55]} 19. c3 {[%clk 0:02:04]}  Bf6 {[%clk 0:00:53]} 20. Kc2 {[%clk 0:02:04]}  d4 {[%clk 0:00:41]} 21. Bxc6 {[%clk 0:01:58]}  dxe3 {[%clk 0:00:38]} 22. Bd5+ {[%clk 0:01:58]}  Kh8 {[%clk 0:00:36]} 23. fxe3 {[%clk 0:01:55]}  c6 {[%clk 0:00:36]} 24. Bf3 {[%clk 0:01:53]}  Rde8 {[%clk 0:00:34]} 25. e4 {[%clk 0:01:47]}  Re7 {[%clk 0:00:30]} 26. b4 {[%clk 0:01:46]}  Be5 {[%clk 0:00:29]} 27. h5 {[%clk 0:01:44]}  h6 {[%clk 0:00:27]} 28. Kb3 {[%clk 0:01:43]}  Ra8 {[%clk 0:00:25]} 29. Rd3 {[%clk 0:01:42]}  b5 {[%clk 0:00:24]} 30. Rhd1 {[%clk 0:01:41]}  Kh7 {[%clk 0:00:21]} 31. Bg4 {[%clk 0:01:37]}  Rf7 {[%clk 0:00:19]} 32. Bf5+ {[%clk 0:01:36]}  Kh8 {[%clk 0:00:19]} 33. g4 {[%clk 0:01:36]}  Rc7 {[%clk 0:00:16]} 34. Rd8+ {[%clk 0:01:34]}  Rxd8 {[%clk 0:00:12]} 35. Rxd8# {[%clk 0:01:35]} 1-0


[Site "https://www.chess.com"]

[Event "Titled Tuesday Blitz February 14 Early 2023"]
[White "Yurovskykh, Oleksandr"]
[Black "Yuan, Qingyu"]
[WhiteFideId "14134020"]
[BlackFideId "8609772"]
[WhiteElo "2328"]
[BlackElo "2373"]
[Result "0-1"]
[Round "09"]
[TimeControl "180+2"]
[Date "2023.02.14"]
[WhiteClock "0:00:27"]
[BlackClock "0:00:29"]

1. d4 {[%clk 0:02:47]}  d5 {[%clk 0:02:59]} 2. Bf4 {[%clk 0:02:47]}  Nf6 {[%clk 0:02:59]} 3. e3 {[%clk 0:02:47]}  c5 {[%clk 0:03:00]} 4. c3 {[%clk 0:02:47]}  Nc6 {[%clk 0:02:59]} 5. Nd2 {[%clk 0:02:47]}  cxd4 {[%clk 0:02:57]} 6. exd4 {[%clk 0:02:45]}  Bf5 {[%clk 0:02:55]} 7. Ngf3 {[%clk 0:02:44]}  e6 {[%clk 0:02:53]} 8. Nh4 {[%clk 0:02:43]}  Bg4 {[%clk 0:02:49]} 9. Qb3 {[%clk 0:02:41]}  Qd7 {[%clk 0:02:45]} 10. h3 {[%clk 0:02:41]}  Bh5 {[%clk 0:02:44]} 11. g4 {[%clk 0:02:41]}  Bg6 {[%clk 0:02:44]} 12. Nxg6 {[%clk 0:02:38]}  hxg6 {[%clk 0:02:45]} 13. Be2 {[%clk 0:02:35]}  Bd6 {[%clk 0:02:42]} 14. Be3 {[%clk 0:02:29]}  Qc7 {[%clk 0:02:26]} 15. h4 {[%clk 0:02:16]}  O-O-O {[%clk 0:02:19]} 16. O-O-O {[%clk 0:02:06]}  Kb8 {[%clk 0:02:17]} 17. h5 {[%clk 0:02:01]}  gxh5 {[%clk 0:02:14]} 18. gxh5 {[%clk 0:02:02]}  Bf4 {[%clk 0:02:09]} 19. Rdg1 {[%clk 0:01:59]}  Rh7 {[%clk 0:01:45]} 20. Kb1 {[%clk 0:01:49]}  Rdh8 {[%clk 0:01:42]} 21. Qd1 {[%clk 0:01:48]}  e5 {[%clk 0:01:30]} 22. Bxf4 {[%clk 0:01:46]}  exf4 {[%clk 0:01:30]} 23. Bf3 {[%clk 0:01:37]}  Qd7 {[%clk 0:01:27]} 24. Rg5 {[%clk 0:01:33]}  Qe6 {[%clk 0:01:07]} 25. Re1 {[%clk 0:01:27]}  Qd6 {[%clk 0:01:05]} 26. Qb3 {[%clk 0:01:21]}  Rd8 {[%clk 0:00:56]} 27. Reg1 {[%clk 0:01:18]}  g6 {[%clk 0:00:39]} 28. hxg6 {[%clk 0:01:18]}  fxg6 {[%clk 0:00:40]} 29. Rxg6 {[%clk 0:01:18]}  Rh2 {[%clk 0:00:38]} 30. R1g2 {[%clk 0:00:50]}  Rh1+ {[%clk 0:00:37]} 31. Kc2 {[%clk 0:00:50]}  Nxd4+ {[%clk 0:00:30]} 32. cxd4 {[%clk 0:00:48]}  Rc8+ {[%clk 0:00:30]} 33. Nc4 {[%clk 0:00:37]}  Rxc4+ {[%clk 0:00:29]} 34. Kd2 {[%clk 0:00:27]}  Rxd4+ {[%clk 0:00:29]} 0-1


[Site "https://www.chess.com"]

[Event "Titled Tuesday Blitz February 14 Early 2023"]
[White "Ioannidis, Evgenios"]
[Black "Ordekalog"]
[WhiteFideId "4229274"]
[WhiteElo "2467"]
[BlackElo "2544"]
[Result "1-0"]
[Round "09"]
[TimeControl "180+2"]
[Date "2023.02.14"]
[WhiteClock "0:00:04"]
[BlackClock "0:00:02"]

1. d4 {[%clk 0:03:00]}  Nf6 {[%clk 0:02:58]} 2. c4 {[%clk 0:03:00]}  e5 {[%clk 0:02:57]} 3. dxe5 {[%clk 0:03:00]}  Ng4 {[%clk 0:02:57]} 4. Bf4 {[%clk 0:03:00]}  Nc6 {[%clk 0:02:57]} 5. Nf3 {[%clk 0:03:00]}  Bb4+ {[%clk 0:02:56]} 6. Nc3 {[%clk 0:03:00]}  Bxc3+ {[%clk 0:02:55]} 7. bxc3 {[%clk 0:03:01]}  Qe7 {[%clk 0:02:56]} 8. Qd5 {[%clk 0:03:01]}  f6 {[%clk 0:02:56]} 9. exf6 {[%clk 0:03:01]}  Nxf6 {[%clk 0:02:57]} 10. Qd3 {[%clk 0:03:02]}  d6 {[%clk 0:02:57]} 11. g3 {[%clk 0:03:02]}  O-O {[%clk 0:02:56]} 12. Bg2 {[%clk 0:03:01]}  Re8 {[%clk 0:02:54]} 13. O-O {[%clk 0:02:45]}  Qxe2 {[%clk 0:02:53]} 14. Qxe2 {[%clk 0:02:45]}  Rxe2 {[%clk 0:02:53]} 15. Nd4 {[%clk 0:02:45]}  Nxd4 {[%clk 0:02:52]} 16. cxd4 {[%clk 0:02:46]}  Be6 {[%clk 0:02:41]} 17. Bxb7 {[%clk 0:02:15]}  Rb8 {[%clk 0:02:40]} 18. Bf3 {[%clk 0:02:15]}  Rc2 {[%clk 0:02:37]} 19. d5 {[%clk 0:01:43]}  Bh3 {[%clk 0:02:33]} 20. Rfc1 {[%clk 0:01:37]}  Rbb2 {[%clk 0:02:30]} 21. Rxc2 {[%clk 0:01:24]}  Rxc2 {[%clk 0:02:31]} 22. Rc1 {[%clk 0:01:15]}  Rxa2 {[%clk 0:02:28]} 23. c5 {[%clk 0:01:16]}  dxc5 {[%clk 0:02:10]} 24. Bxc7 {[%clk 0:01:14]}  c4 {[%clk 0:02:09]} 25. Bf4 {[%clk 0:00:52]}  Ra3 {[%clk 0:01:51]} 26. Bh1 {[%clk 0:00:43]}  Rd3 {[%clk 0:01:39]} 27. d6 {[%clk 0:00:33]}  c3 {[%clk 0:01:36]} 28. Bg2 {[%clk 0:00:22]}  Bxg2 {[%clk 0:01:16]} 29. Kxg2 {[%clk 0:00:23]}  Nd7 {[%clk 0:01:15]} 30. Kf1 {[%clk 0:00:20]}  g5 {[%clk 0:00:34]} 31. Bxg5 {[%clk 0:00:20]}  Rxd6 {[%clk 0:00:34]} 32. Rxc3 {[%clk 0:00:20]}  Kf7 {[%clk 0:00:34]} 33. Rc7 {[%clk 0:00:19]}  a6 {[%clk 0:00:33]} 34. Bf4 {[%clk 0:00:17]}  Rd5 {[%clk 0:00:32]} 35. Ra7 {[%clk 0:00:17]}  a5 {[%clk 0:00:26]} 36. Bc7 {[%clk 0:00:16]}  Rc5 {[%clk 0:00:16]} 37. Bxa5 {[%clk 0:00:14]}  Ke6 {[%clk 0:00:15]} 38. Bd2 {[%clk 0:00:14]}  h5 {[%clk 0:00:14]} 39. Be3 {[%clk 0:00:13]}  Rc2 {[%clk 0:00:13]} 40. Ra6+ {[%clk 0:00:12]}  Kf5 {[%clk 0:00:13]} 41. Ra5+ {[%clk 0:00:12]}  Ke4 {[%clk 0:00:08]} 42. Rxh5 {[%clk 0:00:10]}  Nf6 {[%clk 0:00:06]} 43. Rh4+ {[%clk 0:00:09]}  Kd3 {[%clk 0:00:05]} 44. Rd4+ {[%clk 0:00:09]}  Kc3 {[%clk 0:00:05]} 45. Kg2 {[%clk 0:00:08]}  Ra2 {[%clk 0:00:04]} 46. h4 {[%clk 0:00:08]}  Ra6 {[%clk 0:00:03]} 47. g4 {[%clk 0:00:06]}  Nh7 {[%clk 0:00:02]} 48. g5 {[%clk 0:00:06]}  Nf8 {[%clk 0:00:02]} 49. h5 {[%clk 0:00:06]}  Ne6 {[%clk 0:00:02]} 50. Re4 {[%clk 0:00:04]} 1-0


[Site "https://www.chess.com"]

[Event "Titled Tuesday Blitz February 14 Early 2023"]
[White "Mamedov, Edgar"]
[Black "Srihari L R"]
[WhiteFideId "13739980"]
[BlackFideId "46617116"]
[WhiteElo "2193"]
[BlackElo "2416"]
[Result "1-0"]
[Round "09"]
[TimeControl "180+2"]
[Date "2023.02.14"]
[WhiteClock "0:00:14"]
[BlackClock "0:00:10"]

1. d4 {[%clk 0:03:00]}  d5 {[%clk 0:02:54]} 2. Bg5 {[%clk 0:02:58]}  h6 {[%clk 0:02:51]} 3. Bh4 {[%clk 0:02:56]}  c5 {[%clk 0:02:48]} 4. dxc5 {[%clk 0:02:55]}  Qa5+ {[%clk 0:02:46]} 5. Nc3 {[%clk 0:02:53]}  e6 {[%clk 0:02:45]} 6. e4 {[%clk 0:02:50]}  Bxc5 {[%clk 0:02:36]} 7. exd5 {[%clk 0:02:47]}  Qb4 {[%clk 0:02:35]} 8. Bg3 {[%clk 0:02:33]}  Qxb2 {[%clk 0:02:31]} 9. Nge2 {[%clk 0:02:26]}  Nf6 {[%clk 0:02:24]} 10. Rb1 {[%clk 0:02:24]}  Qa3 {[%clk 0:02:23]} 11. Rb3 {[%clk 0:02:09]}  Qa5 {[%clk 0:02:22]} 12. Rb5 {[%clk 0:02:07]}  Qa3 {[%clk 0:02:20]} 13. Nb1 {[%clk 0:02:06]}  Qxa2 {[%clk 0:01:29]} 14. Rxc5 {[%clk 0:02:02]}  Na6 {[%clk 0:01:28]} 15. Nec3 {[%clk 0:01:43]}  Qa1 {[%clk 0:01:17]} 16. Bb5+ {[%clk 0:01:26]}  Bd7 {[%clk 0:01:14]} 17. Bxd7+ {[%clk 0:01:24]}  Nxd7 {[%clk 0:01:13]} 18. Rb5 {[%clk 0:01:21]}  O-O {[%clk 0:01:06]} 19. O-O {[%clk 0:01:16]}  exd5 {[%clk 0:00:53]} 20. Nxd5 {[%clk 0:01:08]}  Nf6 {[%clk 0:00:46]} 21. Nbc3 {[%clk 0:01:00]}  Qxd1 {[%clk 0:00:45]} 22. Nxf6+ {[%clk 0:00:57]}  gxf6 {[%clk 0:00:45]} 23. Rxd1 {[%clk 0:00:56]}  Rfc8 {[%clk 0:00:34]} 24. Ne4 {[%clk 0:00:52]}  Rxc2 {[%clk 0:00:32]} 25. Nxf6+ {[%clk 0:00:45]}  Kf8 {[%clk 0:00:30]} 26. Rxb7 {[%clk 0:00:41]}  Rac8 {[%clk 0:00:26]} 27. h3 {[%clk 0:00:35]}  Nc5 {[%clk 0:00:16]} 28. Bd6+ {[%clk 0:00:31]}  Kg7 {[%clk 0:00:15]} 29. Bxc5 {[%clk 0:00:29]}  R2xc5 {[%clk 0:00:15]} 30. Ne4 {[%clk 0:00:26]}  Rc1 {[%clk 0:00:16]} 31. Rxc1 {[%clk 0:00:24]}  Rxc1+ {[%clk 0:00:17]} 32. Kh2 {[%clk 0:00:24]}  a5 {[%clk 0:00:17]} 33. Ra7 {[%clk 0:00:20]}  Rc4 {[%clk 0:00:15]} 34. Nd6 {[%clk 0:00:19]}  Rc2 {[%clk 0:00:16]} 35. Rxa5 {[%clk 0:00:18]}  Rxf2 {[%clk 0:00:15]} 36. Rf5 {[%clk 0:00:18]}  Rd2 {[%clk 0:00:15]} 37. Rxf7+ {[%clk 0:00:17]}  Kg6 {[%clk 0:00:15]} 38. Ne4 {[%clk 0:00:16]}  Rxg2+ {[%clk 0:00:14]} 39. Kxg2 {[%clk 0:00:16]}  Kxf7 {[%clk 0:00:15]} 40. Kg3 {[%clk 0:00:16]}  Kg6 {[%clk 0:00:16]} 41. Kh4 {[%clk 0:00:17]}  Kf5 {[%clk 0:00:16]} 42. Ng3+ {[%clk 0:00:17]}  Kf4 {[%clk 0:00:16]} 43. Ne2+ {[%clk 0:00:15]}  Kf3 {[%clk 0:00:11]} 44. Nd4+ {[%clk 0:00:15]}  Kf4 {[%clk 0:00:10]} 45. Kh5 {[%clk 0:00:15]}  Kg3 {[%clk 0:00:10]} 46. h4 {[%clk 0:00:14]} 1-0


[Site "https://www.chess.com"]

[Event "Titled Tuesday Blitz February 14 Early 2023"]
[White "Cherniaiev, Tykhon"]
[Black "Petukhov, Dmitry"]
[WhiteFideId "14182360"]
[BlackFideId "4142748"]
[WhiteElo "2330"]
[BlackElo "2350"]
[Result "1-0"]
[Round "09"]
[TimeControl "180+2"]
[Date "2023.02.14"]
[WhiteClock "0:00:09"]
[BlackClock "0:00:13"]

1. Nf3 {[%clk 0:03:00]}  Nf6 {[%clk 0:02:57]} 2. c4 {[%clk 0:03:01]}  c6 {[%clk 0:02:54]} 3. d4 {[%clk 0:03:01]}  g6 {[%clk 0:02:52]} 4. Nc3 {[%clk 0:03:01]}  d5 {[%clk 0:02:53]} 5. g3 {[%clk 0:03:01]}  Bg7 {[%clk 0:02:53]} 6. Bg2 {[%clk 0:03:02]}  O-O {[%clk 0:02:53]} 7. O-O {[%clk 0:03:02]}  dxc4 {[%clk 0:02:52]} 8. e4 {[%clk 0:03:01]}  b5 {[%clk 0:02:50]} 9. e5 {[%clk 0:03:00]}  Nd5 {[%clk 0:02:49]} 10. Ne4 {[%clk 0:03:01]}  Bf5 {[%clk 0:02:46]} 11. Re1 {[%clk 0:02:59]}  Bxe4 {[%clk 0:02:42]} 12. Rxe4 {[%clk 0:03:00]}  e6 {[%clk 0:02:40]} 13. Bh3 {[%clk 0:02:06]}  Nd7 {[%clk 0:02:21]} 14. Rh4 {[%clk 0:02:05]}  c5 {[%clk 0:02:08]} 15. Ng5 {[%clk 0:01:51]}  cxd4 {[%clk 0:01:39]} 16. Nxe6 {[%clk 0:01:27]}  fxe6 {[%clk 0:01:40]} 17. Bxe6+ {[%clk 0:01:28]}  Kh8 {[%clk 0:01:41]} 18. Qg4 {[%clk 0:01:18]}  Ne3 {[%clk 0:01:20]} 19. Qh3 {[%clk 0:01:06]}  Qxh4 {[%clk 0:00:50]} 20. gxh4 {[%clk 0:01:02]}  Nxe5 {[%clk 0:00:45]} 21. fxe3 {[%clk 0:01:00]}  d3 {[%clk 0:00:43]} 22. Kg2 {[%clk 0:00:43]}  Rf6 {[%clk 0:00:31]} 23. Bd5 {[%clk 0:00:18]}  Raf8 {[%clk 0:00:31]} 24. Kg1 {[%clk 0:00:12]}  Rf2 {[%clk 0:00:27]} 25. Bd2 {[%clk 0:00:12]}  Rxd2 {[%clk 0:00:26]} 26. Rf1 {[%clk 0:00:13]}  Rd8 {[%clk 0:00:20]} 27. h5 {[%clk 0:00:10]}  g5 {[%clk 0:00:16]} 28. h6 {[%clk 0:00:09]}  Bf8 {[%clk 0:00:16]} 29. Qe6 {[%clk 0:00:08]}  Bxh6 {[%clk 0:00:13]} 30. Qf6+ {[%clk 0:00:08]}  Bg7 {[%clk 0:00:13]} 31. Qxd8+ {[%clk 0:00:09]} 1-0


[Site "https://www.chess.com"]

[Event "Titled Tuesday Blitz February 14 Early 2023"]
[White "Veiga, Jose Francisco R P Neves"]
[Black "Csonka, Balazs"]
[WhiteFideId "1930087"]
[BlackFideId "742910"]
[WhiteElo "2406"]
[BlackElo "2496"]
[Result "0-1"]
[Round "09"]
[TimeControl "180+2"]
[Date "2023.02.14"]
[WhiteClock "0:00:02"]
[BlackClock "0:00:13"]

1. b3 {[%clk 0:03:00]}  g6 {[%clk 0:02:53]} 2. Bb2 {[%clk 0:03:01]}  Nf6 {[%clk 0:02:53]} 3. Nf3 {[%clk 0:02:59]}  Bg7 {[%clk 0:02:53]} 4. c4 {[%clk 0:02:59]}  O-O {[%clk 0:02:53]} 5. g3 {[%clk 0:02:59]}  b6 {[%clk 0:02:50]} 6. Bg2 {[%clk 0:02:59]}  Bb7 {[%clk 0:02:50]} 7. O-O {[%clk 0:02:59]}  c5 {[%clk 0:02:50]} 8. d4 {[%clk 0:02:55]}  cxd4 {[%clk 0:02:49]} 9. Qxd4 {[%clk 0:02:54]}  Nc6 {[%clk 0:02:31]} 10. Qd3 {[%clk 0:02:45]}  d5 {[%clk 0:02:16]} 11. cxd5 {[%clk 0:02:40]}  Qxd5 {[%clk 0:02:07]} 12. Qxd5 {[%clk 0:02:39]}  Nxd5 {[%clk 0:02:07]} 13. Bxg7 {[%clk 0:02:38]}  Kxg7 {[%clk 0:02:08]} 14. Rc1 {[%clk 0:02:33]}  Rac8 {[%clk 0:01:44]} 15. Na3 {[%clk 0:02:30]}  Rfd8 {[%clk 0:01:35]} 16. Nc4 {[%clk 0:02:26]}  Kf6 {[%clk 0:01:18]} 17. e4 {[%clk 0:01:41]}  Ndb4 {[%clk 0:01:17]} 18. Bh3 {[%clk 0:01:29]}  Rb8 {[%clk 0:01:07]} 19. e5+ {[%clk 0:01:28]}  Kg7 {[%clk 0:01:07]} 20. a3 {[%clk 0:01:24]}  Nd3 {[%clk 0:01:05]} 21. Rd1 {[%clk 0:01:23]}  b5 {[%clk 0:01:01]} 22. Ne3 {[%clk 0:00:16]}  Ncxe5 {[%clk 0:00:58]} 23. Nxe5 {[%clk 0:00:16]}  Nxe5 {[%clk 0:00:58]} 24. f4 {[%clk 0:00:16]}  Nf3+ {[%clk 0:00:53]} 25. Kf2 {[%clk 0:00:16]}  Nd2 {[%clk 0:00:51]} 26. b4 {[%clk 0:00:14]}  Rd3 {[%clk 0:00:45]} 27. Ke2 {[%clk 0:00:13]}  Rbd8 {[%clk 0:00:41]} 28. Bg2 {[%clk 0:00:08]}  Bxg2 {[%clk 0:00:26]} 29. Nxg2 {[%clk 0:00:09]}  R3d7 {[%clk 0:00:23]} 30. Rac1 {[%clk 0:00:08]}  Nc4 {[%clk 0:00:20]} 31. Rxd7 {[%clk 0:00:07]}  Rxd7 {[%clk 0:00:21]} 32. a4 {[%clk 0:00:07]}  Rd2+ {[%clk 0:00:19]} 33. Kf3 {[%clk 0:00:06]}  a6 {[%clk 0:00:18]} 34. axb5 {[%clk 0:00:06]}  axb5 {[%clk 0:00:19]} 35. Re1 {[%clk 0:00:05]}  e6 {[%clk 0:00:18]} 36. h4 {[%clk 0:00:05]}  Rd3+ {[%clk 0:00:17]} 37. Kg4 {[%clk 0:00:05]}  h5+ {[%clk 0:00:16]} 38. Kh3 {[%clk 0:00:05]}  Rb3 {[%clk 0:00:16]} 39. Rd1 {[%clk 0:00:03]}  Rxb4 {[%clk 0:00:16]} 40. Rd7 {[%clk 0:00:03]}  Rb1 {[%clk 0:00:15]} 41. f5 {[%clk 0:00:02]}  Rh1# {[%clk 0:00:13]} 0-1


[Site "https://www.chess.com"]